[Event "FIDE World Cup O12-B 2024"]
[Site "Batumi"]
[Date "2024.06.25"]
[Round "3.1"]
[White "Qu, Haoming"]
[Black "Tatvidze, Davit"]
[Result "1-0"]
[ECO "B22"]
[WhiteElo "1877"]
[BlackElo "2000"]
[Annotator "NA RC"]
[PlyCount "112"]
[EventDate "2024.06.23"]
[EventType "swiss"]
[EventCountry "GEO"]
[SourceTitle "playchess.com"]
[Source "ChessBase"]
[SourceQuality "1"]
[TimeControl "5400+30"]

1. e4 {[%emt 0:00:05]} c5 {[%emt 0:00:03]} 2. c3 {[%emt 0:00:16]} d5 {[%emt 0:00:05]} 3. exd5 {[%emt 0:00:06]} Qxd5 {[%emt 0:00:03]} 4. d4 {[%emt 0:00:12]} Nc6 {[%emt 0:00:08]} 5. Nf3 {[%emt 0:00:51]} Bf5 {[%emt 0:00:07]} 6. Be3 {[%emt 0:02:25]} Nf6 {[%emt 0:00:28] B22: Sicilian: 2 c3.} 7. a3 {[%emt 0:08:30]} e6 {[%emt 0:09:47]} 8. Be2 {[%emt 0:01:52]} cxd4 {[%emt 0:02:08]} 9. cxd4 {[%emt 0:03:50]} Bxb1 {[%emt 0:00:05]} 10. Rxb1 {[%emt 0:00:09]} Bd6 {[%emt 0:00:34]} 11. h3 {[%emt 0:01:28]} O-O {[%emt 0:01:40]} 12. O-O {[%emt 0:00:36]} h6 {[%emt 0:16:51]} 13. Rc1 {[%emt 0:07:38]} Rfd8 {[%emt 0:04:49]} 14. Re1 {[%emt 0:03:35]} Rac8 {[%emt 0:02:17]} 15. Bf1 {[%emt 0:07:35]} Ne7 {[%emt 0:07:37]} 16. Qd3 {[%emt 0:05:48]} Nf5 {[%emt 0:04:53]} 17. Rxc8 {[%emt 0:05:16]} Rxc8 {[%emt 0:00:19]} 18. Rc1 {[%emt 0:00:17]} Rd8 {[%emt 0:03:46]} 19. Qc4 $11 {[%emt 0:07:49]} a6 {[%emt 0:17:11]} 20. Qxd5 {[%emt 0:07:01]} Nxd5 {[%emt 0:00:07]} 21. Bd2 {[%emt 0:00:09]} Bf4 {[%emt 0:02:49]} 22. Bxf4 {[%emt 0:05:36]} Nxf4 {[%emt 0:00:06]} 23. g3 {[%emt 0:00:08]} Nd5 {[%emt 0:17:39]} 24. Bd3 {[%emt 0:02:45]} Nd6 {[%emt 0:00:11]} 25. Kg2 {[%emt 0:00:59]} g6 {[%emt 0:01:25]} 26. h4 {[%emt 0:01:17]} b5 {[%emt 0:05:45]} 27. Rc6 {[%emt 0:12:15]} a5 {[%emt 0:00:37]} 28. Rc5 {[%emt 0:01:34]} Rb8 {[%emt 0:00:41]} 29. Ne5 {[%emt 0:00:36]} a4 {[%emt 0:01:00]} 30. Nc6 {[%emt 0:00:55]} Rb6 {[%emt 0:00:33]} 31. Nb4 {[%emt 0:00:20]} Nxb4 {[%emt 0:00:50]} 32. axb4 {[%emt 0:00:01]} Ra6 {[%emt 0:00:36]} 33. d5 {[%emt 0:03:15]} exd5 {[%emt 0:00:58]} 34. Rxd5 {[%emt 0:00:04]} Rb6 {[%emt 0:00:22]} 35. Rc5 {[%emt 0:00:16]} Kf8 {[%emt 0:00:18]} 36. Kf3 {[%emt 0:00:11]} Ke7 {[%emt 0:00:20]} 37. Ke2 {[%emt 0:00:52]} Kd7 {[%emt 0:00:47]} 38. Ke3 {[%emt 0:01:00]} h5 {[%emt 0:00:26]} 39. Kf4 {[%emt 0:00:25]} Ke6 {[%emt 0:00:31]} 40. Ke3 {[%emt 0:03:04]} Kd7 {[%emt 0:00:28]} 41. f3 {[%emt 0:00:26]} f5 {[%emt 0:00:57]} 42. Kf4 {[%emt 0:00:54]} Ke6 {[%emt 0:00:24]} 43. g4 {[%emt 0:00:35]} hxg4 {[%emt 0:00:20]} 44. fxg4 {[%emt 0:00:03]} fxg4 {[%emt 0:00:07]} 45. Kxg4 {[%emt 0:00:14]} Kf7 {[%emt 0:01:09]} 46. Kg5 {[%emt 0:00:23]} Ke7 {[%emt 0:00:22]} 47. Re5+ {[%emt 0:00:39]} Kd7 {[%emt 0:00:23]} 48. Bxg6 {[%emt 0:00:40]} Rb8 {[%emt 0:00:44]} 49. h5 {[%emt 0:00:47]} Rg8 {[%emt 0:00:34]} 50. Kh6 {[%emt 0:00:15]} Ra8 {[%emt 0:00:33]} 51. Kg7 {[%emt 0:00:24]} Kc6 {[%emt 0:00:12]} 52. h6 {[%emt 0:00:18]} Ra7+ {[%emt 0:00:12]} 53. Kf6 {[%emt 0:00:06]} Nc4 {[%emt 0:00:40]} 54. Re2 {[%emt 0:00:08]} Nd6 {[%emt 0:00:32]} 55. h7 {[%emt 0:00:25]} Ra8 {[%emt 0:00:06]} 56. Rh2 {[%emt 0:00:17]} Kd5 {[%emt 0:01:55]} 1-0

[Event "FIDE World Cup O12-B 2024"]
[Site "Batumi"]
[Date "2024.06.25"]
[Round "3.2"]
[White "Batbaatar, Baatar"]
[Black "Gabadadze, Gabriel"]
[Result "1/2-1/2"]
[ECO "B33"]
[WhiteElo "1724"]
[BlackElo "1975"]
[Annotator "NA RC"]
[PlyCount "111"]
[EventDate "2024.06.23"]
[EventType "swiss"]
[EventCountry "GEO"]
[SourceTitle "playchess.com"]
[Source "ChessBase"]
[SourceQuality "1"]
[TimeControl "5400+30"]

1. e4 {[%emt 0:02:12]} c5 {[%emt 0:00:00]} 2. Nf3 {[%emt 0:00:29]} Nc6 {[%emt 0:00:01]} 3. d4 {[%emt 0:00:13]} cxd4 {[%emt 0:00:01]} 4. Nxd4 {[%emt 0:00:08]} Nf6 {[%emt 0:00:01]} 5. Nc3 {[%emt 0:00:12]} e5 {[%emt 0:00:01]} 6. Ndb5 {[%emt 0:00:12]} d6 {[%emt 0:00:01]} 7. Bg5 {[%emt 0:00:13]} a6 {[%emt 0:00:02]} 8. Na3 {[%emt 0:00:10]} b5 {[%emt 0:00:00]} 9. Nd5 {[%emt 0:00:12]} Be7 {[%emt 0:00:02]} 10. Bxf6 {[%emt 0:00:13]} Bxf6 {[%emt 0:00:03]} 11. c3 {[%emt 0:00:11]} Rb8 {[%emt 0:00:06]} 12. Nc2 {[%emt 0:00:10]} Bg5 {[%emt 0:00:07]} 13. Be2 {[%emt 0:01:41]} O-O {[%emt 0:00:28]} 14. Ncb4 {[%emt 0:07:27] B33: Sicilian: Pelikan and Sveshnikov Variations.} Nxb4 {[%emt 0:06:15]} 15. Nxb4 {[%emt 0:00:42]} Bb7 {[%emt 0:01:36]} 16. Nd5 {[%emt 0:04:34]} f5 {[%emt 0:05:25]} 17. Bf3 {[%emt 0:02:36]} Bh6 {[%emt 0:07:55]} 18. exf5 {[%emt 0:01:41]} Rxf5 {[%emt 0:00:45]} 19. O-O {[%emt 0:01:13]} Rf8 {[%emt 0:07:39]} 20. a4 {[%emt 0:02:17]} bxa4 {[%emt 0:07:25]} 21. Rxa4 {[%emt 0:01:49]} Kh8 {[%emt 0:05:09]} 22. b4 {[%emt 0:03:47]} Qe8 {[%emt 0:09:46]} 23. Be4 {[%emt 0:05:31]} Qf7 {[%emt 0:04:16]} 24. Qd3 {[%emt 0:03:38]} Rbc8 $16 {[%emt 0:05:02]} 25. f3 {[%emt 0:03:02]} g6 {[%emt 0:04:41]} 26. Rb1 {[%emt 0:03:28]} Bg5 {[%emt 0:04:08]} 27. Kh1 {[%emt 0:12:03]} Qe8 {[%emt 0:04:40]} 28. Ra3 {[%emt 0:05:53]} Qb5 {[%emt 0:03:55]} 29. Qd1 {[%emt 0:01:06]} Bd8 {[%emt 0:02:51]} 30. Ne3 {[%emt 0:03:34]} Bxe4 {[%emt 0:01:33]} 31. fxe4 {[%emt 0:01:48]} Bg5 {[%emt 0:01:25]} 32. Ra5 {[%emt 0:17:13]} Qb7 {[%emt 0:04:05]} 33. Nd5 {[%emt 0:01:22]} Rf2 {[%emt 0:01:54]} 34. Qd3 {[%emt 0:01:52]} Rcf8 {[%emt 0:03:11]} 35. Rxa6 {[%emt 0:03:48]} Rd2 {[%emt 0:02:08]} 36. Qc4 {[%emt 0:00:06]} Qf7 {[%emt 0:01:27]} 37. Rg1 {[%emt 0:04:48]} Qf2 {[%emt 0:02:21]} 38. Raa1 {[%emt 0:00:06]} Bf4 {[%emt 0:02:19]} 39. Raf1 {[%emt 0:04:08]} Qh4 {[%emt 0:00:13]} 40. Nxf4 {[%emt 0:00:06]} exf4 {[%emt 0:00:32]} 41. Rf3 {[%emt 0:01:16]} g5 {[%emt 0:02:26]} 42. Rd3 {[%emt 0:02:03]} Rxd3 {[%emt 0:01:45]} 43. Qxd3 {[%emt 0:00:09]} Rf6 {[%emt 0:00:35]} 44. Rf1 {[%emt 0:00:56]} g4 {[%emt 0:01:00]} 45. Qd4 {[%emt 0:01:00]} Kg8 {[%emt 0:01:00]} 46. e5 {[%emt 0:00:47]} dxe5 {[%emt 0:01:17]} 47. Qxe5 {[%emt 0:00:09]} g3 {[%emt 0:00:12]} 48. h3 {[%emt 0:00:34]} f3 {[%emt 0:00:17]} 49. Qe8+ {[%emt 0:00:37]} Kg7 {[%emt 0:00:20]} 50. Qe7+ {[%emt 0:00:53]} Kg6 {[%emt 0:00:49]} 51. Qe8+ {[%emt 0:00:08]} Kg7 {[%emt 0:00:24]} 52. Qe7+ {[%emt 0:00:09]} Kg8 {[%emt 0:02:56]} 53. Qe5 {[%emt 0:02:25]} Kg7 {[%emt 0:00:30]} 54. Qe8 {[%emt 0:00:30]} Rf7 {[%emt 0:00:30]} 55. Qd7 Qd4 56. Qxd4+ {[%emt 0:01:00]} 1/2-1/2

[Event "FIDE World Cup O12-B 2024"]
[Site "Batumi"]
[Date "2024.06.25"]
[Round "3.3"]
[White "Ambartsumyan, Yuri"]
[Black "Kakavand, Ramtin"]
[Result "0-1"]
[ECO "D15"]
[WhiteElo "1750"]
[BlackElo "2059"]
[Annotator "NA RC"]
[PlyCount "82"]
[EventDate "2024.06.23"]
[EventType "swiss"]
[EventCountry "GEO"]
[SourceTitle "playchess.com"]
[Source "ChessBase"]
[SourceQuality "1"]
[TimeControl "5400+30"]

1. d4 {[%emt 0:00:02]} d5 {[%emt 0:00:07]} 2. c4 {[%emt 0:00:03]} c6 {[%emt 0:00:04]} 3. Nc3 {[%emt 0:00:03]} Nf6 {[%emt 0:00:06]} 4. e3 {[%emt 0:00:04]} a6 {[%emt 0:00:28]} 5. Nf3 {[%emt 0:00:33]} b5 {[%emt 0:00:54]} 6. cxd5 {[%emt 0:02:53]} cxd5 {[%emt 1:31:51]} 7. Bd3 {[%emt 0:01:10] 7.Ne5 is not played anymore.} e6 {[%emt 0:00:00]} 8. O-O {[%emt 0:00:12]} Bb7 {[%emt 0:00:00] D15: Slav Defence: 4 Nc3 a6 and gambit lines after 4 Nc3 dxc4.} 9. b3 {[%emt 0:08:29]} Bd6 {[%emt 0:00:00]} 10. Bb2 {[%emt 0:02:16]} Nbd7 {[%emt 0:00:00]} 11. Rc1 {[%emt 0:00:13]} O-O {[%emt 0:00:00]} 12. Qe2 {[%emt 0:10:17]} Ne4 {[%emt 0:00:00]} 13. Bxe4 {[%emt 0:07:38]} (13. Rc2 $11) 13... dxe4 {[%emt 0:00:00]} 14. Nd2 {[%emt 0:00:05]} f5 {[%emt 0:00:00]} 15. f4 $146 {[%emt 0:07:31]} ({Predecessor:} 15. f3 Qh4 16. g3 exf3 17. Nxf3 Qh6 18. Nd1 Qh5 19. Nc3 Qh6 20. Nd1 Rac8 21. Nf2 Qh5 22. Nd3 g5 23. Nde5 Rxc1 24. Bxc1 Bxe5 {0-1 Zawierucha,A (2039)-Karhanek,P (2261) Orlova op 3rd 2006 (4)}) 15... exf3 {[%emt 0:00:00]} 16. Nxf3 {[%emt 0:00:34]} g5 {[%emt 0:00:00]} 17. e4 {[%emt 0:06:25]} b4 {[%emt 0:00:00]} 18. Na4 {[%emt 0:16:37]} Bxe4 {[%emt 0:00:00]} 19. Nc5 {[%emt 0:00:33]} Bd5 {[%emt 0:00:00]} 20. Nxd7 {[%emt 0:09:23]} (20. Nxe6 $2 {loses.} Re8 21. Qd3 (21. Nfxg5 $2 {perishes.} Qxg5 22. Nxg5 Rxe2 $19) 21... Rxe6 $19 (21... Bxe6 $2 22. d5 $19)) (20. Nb7 $1 $11 {keeps the balance.} Qe7 21. Nxd6 Qxd6 (21... g4 22. Nxf5 Rxf5 23. Ne5 $11) 22. Nxg5) 20... Qxd7 {[%emt 0:00:00]} 21. Nxg5 {[%emt 0:03:22]} Qg7 {[%emt 0:00:00]} 22. Nf3 {[%emt 0:00:54]} Kh8 {[%emt 0:00:00]} 23. Ne5 $17 {[%emt 0:02:47]} f4 {[%emt 0:00:00]} 24. Nf3 {[%emt 0:00:22]} Qb7 {[%emt 0:00:00]} 25. Kh1 {[%emt 0:00:33]} a5 {[%emt 0:00:00]} 26. Rce1 {[%emt 0:05:25]} Rg8 {[%emt 0:00:00]} 27. Qd3 {[%emt 0:01:00]} Rg6 {[%emt 0:00:00]} 28. Rf2 {[%emt 0:00:23]} a4 {[%emt 0:00:00]} 29. Bc1 {[%emt 0:00:55]} Rag8 {[%emt 0:00:00]} 30. Rg1 {[%emt 0:01:14]} axb3 {[%emt 0:00:00]} 31. axb3 {[%emt 0:00:04]} Qg7 {[%emt 0:00:00]} 32. Bb2 {[%emt 0:01:20]} Rh6 {[%emt 0:00:00]} 33. Re1 {[%emt 0:02:40]} Qg3 {[%emt 0:00:00]} 34. Kg1 {[%emt 0:04:37]} Rxh2 {[%emt 0:00:00]} 35. Qe2 {[%emt 0:04:08]} Rh6 {[%emt 0:00:00]} 36. Ba1 {[%emt 0:00:44]} Qh3 {[%emt 0:00:00]} 37. Kf1 {[%emt 0:00:43]} Qh1+ {[%emt 0:00:00]} 38. Ng1 {[%emt 0:00:05]} Rhg6 {[%emt 0:00:00]} 39. Qc2 {[%emt 0:01:08]} Rxg2 {[%emt 0:00:00]} 40. Rxg2 {[%emt 0:00:09]} Rxg2 {[%emt 0:00:00]} 41. Qc8+ {[%emt 0:00:07]} Rg8 {[%emt 0:00:00]} 0-1

[Event "FIDE World Cup O12-B 2024"]
[Site "Batumi"]
[Date "2024.06.25"]
[Round "3.4"]
[White "Ibrahimli, Suat"]
[Black "Zhang, Haoxuan(Zj)"]
[Result "1/2-1/2"]
[ECO "D27"]
[WhiteElo "1852"]
[BlackElo "1907"]
[Annotator "NA RC"]
[PlyCount "47"]
[EventDate "2024.06.23"]
[EventType "swiss"]
[EventCountry "GEO"]
[SourceTitle "playchess.com"]
[Source "ChessBase"]
[SourceQuality "1"]
[TimeControl "5400+30"]

1. d4 {[%emt 0:00:07]} d5 {[%emt 0:00:22]} 2. c4 {[%emt 0:00:05]} dxc4 {[%emt 0:00:03]} 3. Nf3 {[%emt 0:00:05]} Nf6 {[%emt 0:00:10]} 4. e3 {[%emt 0:00:04]} e6 {[%emt 0:00:03]} 5. Bxc4 {[%emt 0:00:05]} c5 {[%emt 0:00:03]} 6. O-O {[%emt 0:00:11]} a6 {[%emt 0:00:01]} 7. a4 {[%emt 0:00:06]} Nc6 {[%emt 0:00:06]} 8. Nc3 {[%emt 0:00:20]} Be7 {[%emt 0:00:05]} 9. Qe2 {[%emt 0:02:15]} cxd4 {[%emt 0:00:11]} 10. exd4 {[%emt 0:09:30]} O-O {[%emt 0:00:50]} 11. Rd1 {[%emt 0:00:29]} Nb4 {[%emt 0:00:09]} 12. Bg5 {[%emt 0:02:56]} Bd7 {[%emt 0:00:02]} 13. Ne5 {[%emt 0:02:23]} Bc6 {[%emt 0:00:09] 13...Bc6 scores better than 13...Rc8.} 14. Nxc6 {[%emt 0:03:00] D27: Queen's Gambit Accepted: Classical main line: 7 e4!? and 7 a4.} Nxc6 {[%emt 0:00:02]} 15. Qd2 {[%emt 0:34:34]} Nd5 $146 {[%emt 0:06:01]} ({Predecessor:} 15... Rc8 16. Be2 Qa5 17. Bxf6 Bxf6 18. Ne4 Qxd2 19. Nxf6+ gxf6 20. Rxd2 Rfd8 21. Bf3 Nxd4 22. Bxb7 {0-1 Omelja,A (2264)-Zilka,S (2479) Prague op-A 10th 2011 (4)}) 16. Bxe7 {[%emt 0:01:51]} Ncxe7 {[%emt 0:00:07]} 17. Rac1 {[%emt 0:00:38]} Rc8 {[%emt 0:01:25]} 18. Ne4 {[%emt 0:03:17]} Rc7 {[%emt 0:13:07]} 19. a5 {[%emt 0:11:33]} Nc6 {[%emt 0:02:15]} 20. Nc5 {[%emt 0:04:24]} Qd6 {[%emt 0:01:04]} 21. Bxd5 {[%emt 0:01:42]} Qxd5 {[%emt 0:00:17]} 22. Qc3 {[%emt 0:00:12]} Rfc8 {[%emt 0:01:57]} 23. b4 {[%emt 0:01:19]} h6 {[%emt 0:00:55]} 24. h3 $11 {[%emt 0:02:27]} 1/2-1/2

[Event "FIDE World Cup O12-B 2024"]
[Site "Batumi"]
[Date "2024.06.25"]
[Round "3.5"]
[White "Diaz Guerrero, Jesus Daniel"]
[Black "Amangeldy, Ramazan"]
[Result "1-0"]
[ECO "C45"]
[WhiteElo "2032"]
[BlackElo "1740"]
[Annotator "NA RC"]
[PlyCount "155"]
[EventDate "2024.06.23"]
[EventType "swiss"]
[EventCountry "GEO"]
[SourceTitle "playchess.com"]
[Source "ChessBase"]
[SourceQuality "1"]
[TimeControl "5400+30"]

1. e4 {[%emt 0:00:23]} e5 {[%emt 0:00:45]} 2. Nf3 {[%emt 0:00:11]} Nc6 {[%emt 0:00:08]} 3. d4 {[%emt 0:00:34]} exd4 {[%emt 0:00:04]} 4. Nxd4 {[%emt 0:00:09]} Nf6 {[%emt 0:00:02]} 5. Nxc6 {[%emt 0:00:26]} bxc6 {[%emt 0:00:05]} 6. Qe2 {[%emt 0:02:23]} Rb8 {[%emt 0:02:04]} 7. Nc3 {[%emt 0:06:58]} Bb4 {[%emt 0:15:22]} 8. Bg5 {[%emt 0:14:39]} ({Better is} 8. e5 $15 Nd5 9. Qg4) 8... O-O {[%emt 0:06:42]} 9. Qf3 {[%emt 0:12:27]} Re8 {[%emt 0:12:42]} 10. Bd3 {[%emt 0:11:13]} d5 {[%emt 0:09:09]} 11. O-O $1 {[%emt 0:01:51]} d4 {[%emt 0:07:05]} 12. Bxf6 {[%emt 0:45:16]} Qxf6 {[%emt 0:01:58]} 13. Qxf6 $14 {[%emt 0:00:00]} gxf6 {[%emt 0:00:16]} 14. Ne2 {[%emt 0:00:00]} Rd8 {[%emt 0:00:33]} 15. Ng3 {[%emt 0:00:00]} Bf8 {[%emt 0:00:14]} 16. b3 {[%emt 0:00:00]} c5 {[%emt 0:00:48]} 17. f4 {[%emt 0:00:00]} Rb6 {[%emt 0:04:05]} 18. Rae1 {[%emt 0:00:00]} Re8 {[%emt 0:00:41]} 19. h3 {[%emt 0:00:00]} Kh8 {[%emt 0:13:48]} 20. Nh5 {[%emt 0:00:00]} Bg7 {[%emt 0:01:21]} 21. g4 {[%emt 0:00:00]} Bb7 {[%emt 0:03:20]} 22. Ng3 {[%emt 0:00:00]} Ba6 {[%emt 0:03:00]} 23. Nh5 {[%emt 0:00:00]} Bb7 {[%emt 0:01:55]} 24. Bc4 {[%emt 0:00:00]} Kg8 {[%emt 0:02:08]} 25. e5 {[%emt 0:00:00]} fxe5 {[%emt 0:02:13]} 26. fxe5 {[%emt 0:00:00]} Re7 {[%emt 0:00:21]} 27. Rxf7 {[%emt 0:00:00]} Rxf7 {[%emt 0:01:32]} 28. Rf1 {[%emt 0:00:00]} Bxe5 {[%emt 0:01:13]} 29. Bxf7+ {[%emt 0:00:36]} Kf8 {[%emt 0:03:34]} 30. Rf5 {[%emt 0:03:02]} Bh8 {[%emt 0:03:38]} 31. Bc4+ {[%emt 0:02:09]} Ke8 {[%emt 0:01:17]} 32. Rf7 {[%emt 0:00:25]} Be4 {[%emt 0:01:02]} 33. Rxc7 {[%emt 0:00:29]} Be5 {[%emt 0:00:26]} 34. Rxc5 {[%emt 0:00:09]} Bb8 {[%emt 0:01:50]} 35. Bd3 {[%emt 0:01:53]} Bb7 {[%emt 0:02:03]} 36. Rb5 {[%emt 0:00:53]} h6 {[%emt 0:00:32]} 37. Rxb6 {[%emt 0:00:08]} axb6 {[%emt 0:00:30]} 38. Ng7+ {[%emt 0:00:07]} Kf7 {[%emt 0:00:12]} 39. Nf5 {[%emt 0:00:06]} Bf4 {[%emt 0:00:16]} 40. Kf2 {[%emt 0:00:10]} Kf6 {[%emt 0:00:31]} 41. Nxd4 Bd6 {[%emt 0:01:35]} 42. c3 {[%emt 0:01:51]} Kg5 {[%emt 0:00:00]} 43. Be2 {[%emt 0:00:57]} Bc5 {[%emt 0:00:25]} 44. Bf3 {[%emt 0:00:53]} Bc8 {[%emt 0:00:13]} 45. Bd5 {[%emt 0:01:27]} Kf4 {[%emt 0:00:33]} 46. b4 {[%emt 0:00:22]} Bd6 {[%emt 0:00:14]} 47. Ne2+ {[%emt 0:00:59]} Ke5 {[%emt 0:00:07]} 48. Bf3 {[%emt 0:00:22]} Be6 {[%emt 0:00:19]} 49. a3 {[%emt 0:00:10]} Bd7 {[%emt 0:00:25]} 50. Nd4 {[%emt 0:00:15]} Kf4 {[%emt 0:00:15]} 51. Bc6 {[%emt 0:00:42]} Bc8 {[%emt 0:00:18]} 52. a4 {[%emt 0:00:24]} Be7 {[%emt 0:00:21]} 53. Ne2+ {[%emt 0:00:52]} Ke5 {[%emt 0:00:19]} 54. Nd4 {[%emt 0:00:44]} Kf4 {[%emt 0:00:13]} 55. Bd5 {[%emt 0:00:22]} Bh4+ {[%emt 0:00:18]} 56. Kg2 {[%emt 0:00:37]} Bf6 {[%emt 0:00:10]} 57. a5 {[%emt 0:00:43]} bxa5 {[%emt 0:01:01]} 58. bxa5 {[%emt 0:00:01]} Ke3 {[%emt 0:00:04]} 59. Nf5+ {[%emt 0:00:48]} Kd3 {[%emt 0:00:24]} 60. Nd6 {[%emt 0:00:26]} Bxc3 {[%emt 0:03:12]} 61. Nxc8 {[%emt 0:00:07]} Bxa5 {[%emt 0:01:09]} 62. Ne7 {[%emt 0:00:26]} Bd2 {[%emt 0:00:00]} 63. Nf5 {[%emt 0:00:06]} Bc1 {[%emt 0:00:15]} 64. Kg3 {[%emt 0:00:23]} Bg5 {[%emt 0:00:07]} 65. Nd6 {[%emt 0:01:28]} Kd4 {[%emt 0:00:26]} 66. Ba2 {[%emt 0:00:15]} Bd2 {[%emt 0:00:27]} 67. Kh4 {[%emt 0:00:15]} Bf4 {[%emt 0:00:58]} 68. Nf7 {[%emt 0:00:00]} Ke3 {[%emt 0:00:46]} 69. Kh5 {[%emt 0:02:28]} Kf3 {[%emt 0:01:01]} 70. Nxh6 {[%emt 0:00:30]} Kg3 71. h4 {[%emt 0:00:00]} Bd2 {[%emt 0:00:00]} 72. g5 {[%emt 0:00:00]} Bc3 {[%emt 0:00:00]} 73. Nf5+ {[%emt 0:00:00]} Kh3 {[%emt 0:00:39]} 74. Be6 {[%emt 0:00:00]} Ba1 {[%emt 0:00:06]} 75. g6 {[%emt 0:00:00]} Bf6 {[%emt 0:00:05]} 76. g7 {[%emt 0:00:00]} Bxg7 {[%emt 0:00:06]} 77. Nxg7+ {[%emt 0:00:00]} Kg3 {[%emt 0:01:01]} 78. Kg5 {[%emt 0:00:00]} 1-0

[Event "FIDE World Cup O12-B 2024"]
[Site "Batumi"]
[Date "2024.06.25"]
[Round "3.6"]
[White "Garakhanov, Shamsi"]
[Black "Golikov, Ivan"]
[Result "1/2-1/2"]
[ECO "E32"]
[WhiteElo "1884"]
[BlackElo "1723"]
[Annotator "NA RC"]
[PlyCount "138"]
[EventDate "2024.06.23"]
[EventType "swiss"]
[EventCountry "GEO"]
[SourceTitle "playchess.com"]
[Source "ChessBase"]
[SourceQuality "1"]
[TimeControl "5400+30"]

1. d4 {[%emt 0:00:03]} Nf6 {[%emt 0:00:07]} 2. c4 {[%emt 0:00:05]} e6 {[%emt 0:00:07]} 3. Nc3 {[%emt 0:00:12]} Bb4 {[%emt 0:00:12]} 4. Qc2 {[%emt 0:00:05]} O-O {[%emt 0:02:53]} 5. Bg5 {[%emt 0:01:34]} d6 {[%emt 0:06:15]} 6. e3 {[%emt 0:01:30]} Nbd7 {[%emt 0:01:03]} 7. Bd3 {[%emt 0:06:24]} h6 {[%emt 0:00:33]} 8. Bh4 {[%emt 0:01:24]} e5 {[%emt 0:07:16]} 9. Nge2 {[%emt 0:11:29]} Re8 {[%emt 0:05:44]} 10. O-O-O {[%emt 0:03:16]} c6 {[%emt 0:03:52]} 11. a3 {[%emt 0:17:59]} exd4 {[%emt 0:12:17] [#]} ({Black should play} 11... Bxc3 12. Nxc3 Qa5) 12. Ne4 $16 {[%emt 0:12:39]} ({Of course not} 12. Nxd4 $6 Bxc3 13. Qxc3 Ne5 $11) ({Don't play} 12. exd4 Ba5 $16) (12. axb4 dxc3 13. Nxc3 a5 14. bxa5 Qxa5 $17) 12... g5 {[%emt 0:16:08]} 13. axb4 {[%emt 0:11:37]} Nxe4 {[%emt 0:01:44]} 14. Bxe4 {[%emt 0:04:12]} gxh4 {[%emt 0:01:32]} 15. Nxd4 {[%emt 0:00:45]} Nf6 {[%emt 0:10:04]} 16. Bf5 {[%emt 0:01:04]} a5 {[%emt 0:02:57]} 17. b5 {[%emt 0:05:29]} Re5 {[%emt 0:05:36]} 18. bxc6 {[%emt 0:03:47]} Qb6 {[%emt 0:04:27]} 19. g4 {[%emt 0:05:36]} Rc5 {[%emt 0:03:55]} 20. Bxc8 {[%emt 0:04:09]} Rxc8 {[%emt 0:00:27]} 21. Nf5 {[%emt 0:00:03]} R8xc6 {[%emt 0:07:28]} 22. Ne7+ {[%emt 0:00:07]} Kg7 {[%emt 0:00:11]} 23. Nxc6 {[%emt 0:00:46]} Qxc6 {[%emt 0:00:17]} 24. Kb1 {[%emt 0:01:34]} Rxc4 {[%emt 0:00:31]} 25. Qd3 {[%emt 0:00:38]} Nxg4 {[%emt 0:03:45]} 26. Rhg1 {[%emt 0:03:44]} Kf8 {[%emt 0:02:33]} 27. Rc1 {[%emt 0:01:57]} Ne5 {[%emt 0:01:18]} 28. Rxc4 {[%emt 0:01:37]} Nxc4 {[%emt 0:00:10]} 29. Qd4 {[%emt 0:00:34]} a4 {[%emt 0:01:01]} 30. Rc1 {[%emt 0:00:35]} b5 {[%emt 0:00:24]} 31. Qc3 {[%emt 0:00:31]} Qe4+ {[%emt 0:00:38]} 32. Ka1 {[%emt 0:00:11]} Qf5 {[%emt 0:00:32]} 33. Qh8+ {[%emt 0:00:45]} Ke7 {[%emt 0:00:06]} 34. f4 {[%emt 0:00:12]} Qe6 {[%emt 0:00:28]} 35. Qc3 {[%emt 0:00:11]} Qe4 {[%emt 0:00:40]} 36. Rd1 {[%emt 0:01:09]} Qe6 {[%emt 0:00:47]} 37. Rc1 {[%emt 0:00:33]} Qe4 {[%emt 0:00:16]} 38. Qb4 {[%emt 0:00:18]} Qd5 {[%emt 0:00:23]} 39. Qc3 {[%emt 0:00:35]} Qg2 {[%emt 0:00:50]} 40. Qb4 {[%emt 0:00:31]} Qd5 {[%emt 0:00:29]} 41. Qc3 {[%emt 0:00:36]} Qe4 {[%emt 0:00:30]} 42. h3 {[%emt 0:00:20]} Qd5 {[%emt 0:00:17]} 43. e4 {[%emt 0:00:07]} Qc5 {[%emt 0:00:45]} 44. Ka2 {[%emt 0:00:26]} Qf2 {[%emt 0:00:16]} 45. e5 {[%emt 0:00:38]} Qxf4 {[%emt 0:00:27]} 46. exd6+ {[%emt 0:00:04]} Qxd6 {[%emt 0:00:24]} 47. Re1+ {[%emt 0:00:16]} Kd7 {[%emt 0:00:09]} 48. Qf3 {[%emt 0:00:44]} Ne5 {[%emt 0:01:14]} 49. Qb7+ {[%emt 0:00:15]} Ke6 {[%emt 0:00:22]} 50. Qc8+ {[%emt 0:00:36]} Ke7 {[%emt 0:00:28]} 51. Qh8 {[%emt 0:01:07]} f6 {[%emt 0:00:36]} 52. Qg7+ {[%emt 0:00:52]} Kd8 {[%emt 0:00:34]} 53. Qb7 {[%emt 0:00:37]} Qd3 {[%emt 0:00:30]} 54. Rc1 {[%emt 0:00:27]} Qb3+ {[%emt 0:00:28]} 55. Ka1 {[%emt 0:00:08]} Nc4 {[%emt 0:00:10]} 56. Qd5+ {[%emt 0:00:33]} Kc7 {[%emt 0:00:35]} 57. Qf7+ {[%emt 0:00:12]} Kb8 {[%emt 0:00:21]} 58. Qe8+ {[%emt 0:00:14]} Kc7 {[%emt 0:00:26]} 59. Qe7+ {[%emt 0:00:05]} Kb8 {[%emt 0:00:23]} 60. Qd8+ {[%emt 0:00:08]} Kb7 {[%emt 0:00:06]} 61. Qd7+ {[%emt 0:00:09]} Kb8 {[%emt 0:00:09]} 62. Qd8+ {[%emt 0:00:12]} Kb7 {[%emt 0:00:14]} 63. Qd7+ {[%emt 0:00:09]} Kb8 {[%emt 0:00:31]} 64. Qe8+ {[%emt 0:00:14]} Kb7 {[%emt 0:00:10]} 65. Qe4+ {[%emt 0:00:33]} Kb8 {[%emt 0:00:22]} 66. Qe8+ {[%emt 0:00:54]} Kc7 {[%emt 0:00:28]} 67. Qe7+ {[%emt 0:00:05]} Kb8 {[%emt 0:00:22]} 68. Qd8+ {[%emt 0:00:06]} Kb7 {[%emt 0:00:17]} 69. Qd7+ {[%emt 0:00:17]} Kb8 {[%emt 0:00:05]} 1/2-1/2